Cogmind - Beta 11 @@@ ROGUE MODE // 2022.03.27 @ 12:19:26 Player: 3.14 Result: Self-destructed Performance ------------- Evolutions (1) 500 Regions Visited (2) 400 Robots Destroyed (21) 105 Value Destroyed (405) 405 Prototype IDs (3) 60 Alien Tech Used (0) 0 Bonus (0) 0 TOTAL SCORE: 1470 Bonus ------- None Cogmind --------- Core Integrity 261/400 Matter 300/300 Energy 280/280 System Corruption 10% Temperature Cool (0) Movement Walking (190) Ox1 Location -9/Materials Parts ------- > --- POWER (1) -------- Cooled Ion Engine > --- PROPULSION (4) --- Aluminum Leg Aluminum Leg > --- UTILITY (2) ------ Large Storage Unit > --- WEAPON (2) ------- Mining Claw Mining Claw > --- INVENTORY (15) --- Improved Ion Engine Reinforced Ion Engine Aluminum Leg Aluminum Leg Aluminum Leg Light Armor Plating Medium Laser Grenade Launcher Mining Claw Mining Claw Mining Claw Mining Claw Peak State ------------ > --- POWER ------------ Cooled Ion Engine > --- PROPULSION ------- Aluminum Leg Aluminum Leg Aluminum Leg Aluminum Leg > --- UTILITY ---------- Large Storage Unit Light Armor Plating > --- WEAPON ----------- Mining Claw Mining Claw > --- INVENTORY -------- Light Ion Engine Aluminum Leg Aluminum Leg Aluminum Leg Medium Laser Grenade Launcher Mining Claw Mining Claw Mining Claw Mining Claw [Rating: 12] Favorites ----------- Power Light Ion Engine Engine Light Ion Engine Propulsion Aluminum Leg Treads Light Treads Leg Aluminum Leg Utility Large Storage Unit Device Tractor Beam Storage Large Storage Unit Processor Transport Network Coupler Protection Light Armor Plating Weapon Mining Claw Energy Gun EM Pulse Gun Ballistic Gun Light Assault Rifle Slashing Weapon Mining Claw Build | -11 -10 -9 ------- Run | Scr Mat Mat Slots Evolved 2 | . . 2 Power . | . . . Propulsion 2 | . . 2 Utility . | . . . Weapon . | . . . Parts Attached 22 | 7 4 11 Power 5 | 1 1 3 Engine 5 | 1 1 3 Core . | . . . Reactor . | . . . Propulsion 6 | 2 . 4 Treads 2 | 2 . . Leg 4 | . . 4 Wheel . | . . . Hover . | . . . Flight . | . . . Utility 5 | 2 1 2 Device 1 | 1 . . Storage 2 | 1 1 . Processor 1 | . . 1 Hackware . | . . . Protection 1 | . . 1 Artifact . | . . . Weapon 6 | 2 2 2 Energy Gun 3 | 2 1 . Energy Cannon . | . . . Ballistic Gun 1 | . 1 . Ballistic Cannon . | . . . Launcher . | . . . Special Weapon . | . . . Impact Weapon . | . . . Slashing Weapon 2 | . . 2 Piercing Weapon . | . . . Special Melee Weapon . | . . . Unidentified Prototypes 1 | . . 1 Parts Lost 4 | . 1 3 Power . | . . . Propulsion 2 | . . 2 Utility 2 | . 1 1 Weapon . | . . . Highest Loss Streak 3 | . 1 3 To Critical Strikes . | . . . Average Slot Usage (%) 91 | . 87 94 Engine 12 | . 14 11 Treads 15 | . 28 . Leg 19 | . . 42 Device 1 | . 2 . Storage 12 | . 14 11 Processor 2 | . . 4 Protection 1 | . . 3 Energy Gun 9 | . 17 . Ballistic Gun 5 | . 10 . Slashing Weapon 9 | . . 21 Naked Turns . | . . . Heaviest Build 35 | 13 26 35 Greatest Support 40 | 40 40 40 Greatest Overweight (x) 1 | 1 . . Average Overweight (x) . | . . . Largest Inventory Capacity 15 | 8 15 15 Average Capacity 11 | 6 9 15 Most Carried 15 | 4 15 15 Average Carried 8 | 2 8 10 Final Capacity 15 | 8 15 15 Final Carried 15 | 4 15 12 Class Distribution -------------------- 88% | Mutant 11% | Scavenger-Mutant Dominant Class ---------------- Mutant | -10/Materials Mutant | -9/Materials Resources | -11 -10 -9 ----------- Run | Scr Mat Mat Matter Collected 418 | 270 53 95 Remotely 216 | 216 . . Salvage Created 697 | 87 355 255 Parts 44 | 3 20 21 Haulers Intercepted 2 | . 1 1 Recyclers Shooed 1 | . 1 . Parts Field Recycled . | . . . Retrieved Matter . | . . . Parts Self-Destructed . | . . . Prevented . | . . . Kills | -11 -10 -9 ------- Run | Scr Mat Mat Combat Hostiles Destroyed 17 | . 10 7 Melee 7 | . . 7 Guns 8 | . 8 . AOE 2 | . 2 . Classes Destroyed 6 | 1 4 1 Hauler 2 | . 1 1 Recycler 1 | 1 . . Operator 1 | . 1 . Swarmer 10 | . 6 4 Grunt 6 | . 4 2 Sentry 1 | . . 1 Best Kill Streak 8 | 1 8 5 Combat Bots Only 8 | . 8 5 Max Kills in Single Turn 1 | 1 1 1 Gunslinging . | . . . Exploded 1 | . 1 . Melee 1 | . . 1 Uniques/NPCs Destroyed . | . . . Combat | -11 -10 -9 -------- Run | Scr Mat Mat Damage Taken 811 | . 289 522 Core 163 | . 24 139 Absorbed by Shields . | . . . Core Remaining (%) 95 | 100 90 . Volleys Fired 30 | 2 28 . Largest 2 | 2 2 . Hottest 80 | 80 80 . Shots Fired 60 | 4 56 . Gun 60 | 4 56 . Cannon . | . . . Launcher . | . . . Special . | . . . Kinetic 13 | . 13 . Thermal . | . . . Explosive . | . . . Electromagnetic 47 | 4 43 . Robot Hit Streak 9 | 2 9 . Robot Miss Streak 3 | 1 3 . Penetration Max . | . . . Secondary Targets 1 | . 1 . Max Gunslinging Chain 1 | . 1 . Shots Hit Robots 56 | 2 35 19 Core Hits 27 | 2 16 9 Critical Kills . | . . . Critical Parts Destroyed . | . . . Critical Strikes . | . . . Melee Attacks 46 | . . 46 Impact . | . . . Slashing 46 | . . 46 Piercing . | . . . Sneak Attacks 1 | . . 1 Combat Hostiles . | . . . Follow-up Attacks 4 | . . 4 Damage Inflicted 1052 | 24 614 414 Guns 426 | 24 402 . Cannons . | . . . Explosions 190 | . 190 . Melee 397 | . . 397 Ramming 39 | . 22 17 Kinetic 80 | . 80 . Thermal 190 | . 190 . Explosive . | . . . Electromagnetic 346 | 24 322 . Impact . | . . . Slashing 397 | . . 397 Piercing . | . . . Highest Corruption 10 | . . 10 Average Corruption 6 | . . 6 Corruption Purged . | . . . Corruption Blocked . | . . . Overload Shots . | . . . Overflow Damage 23 | . 23 . Projectiles . | . . . Explosions 23 | . 23 . Melee . | . . . Knockbacks . | . . . Impact . | . . . Kinetic . | . . . Secondary . | . . . Self-Inflicted Damage 53 | . 53 . Shots 2 | . 2 . Rammed 4 | . 4 . Targets Rammed 5 | . 4 1 Kicked 1 | . . 1 Crushed . | . . . Highest Temperature 96 | 6 96 . Average Temperature 31 | 3 33 . Received Heat Transfer 162 | . 78 84 Siege Activations . | . . . Robots Corrupted . | . . . Combat Hostiles . | . . . Parts Fried 1 | . 1 . Impact Corruptions . | . . . Robots Melted . | . . . Combat Hostiles . | . . . Parts Melted . | . . . Heat Transferred 250 | . 250 . Parts Sabotaged . | . . . Parts Stolen . | . . . Parts Stripped . | . . . Power Chain Reactions 5 | . 5 . Missiles Intercepted . | . . . Alert | -11 -10 -9 ------- Run | Scr Mat Mat Peak Influence 350 | 5 350 223 Initial 5 | . 3 5 Average 145 | 3 170 142 Maximum Alert Level 1 | . 1 1 Low Security (%) 54 | 100 49 52 Level 1 45 | . 50 47 Level 2 . | . . . Level 3 . | . . . Level 4 . | . . . Level 5 . | . . . High Security . | . . . Max Security . | . . . Squads Dispatched 3 | . 2 1 Investigation 1 | . . 1 Extermination . | . . . Reinforcement 2 | . 2 . Assault . | . . . Garrison . | . . . Intercept . | . . . Searches Triggered . | . . . Construction Impeded . | . . . Haulers Reinforced . | . . . Active Scanning Responses . | . . . Cargo Convoy Interrupts . | . . . Stealth | -11 -10 -9 --------- Run | Scr Mat Mat Distress Signals 1 | . 1 . Communications Jammed . | . . . Distress Signals . | . . . Times Spotted 27 | . 17 10 Peak Tracking Total 5 | . 5 4 Tactical Retreats 1 | . 1 . Traps | -11 -10 -9 ------- Run | Scr Mat Mat Traps Triggered . | . . . Indirectly . | . . . Trap Hack Attempts . | . . . Triggered . | . . . Disarmed . | . . . Reprogrammed . | . . . Reused . | . . . Traps Extracted . | . . . Installed . | . . . Triggered . | . . . Machines | -11 -10 -9 ---------- Run | Scr Mat Mat Machines Disabled 3 | . 3 . Max in Single Turn 1 | . 1 . Machines Sabotaged . | . . . Garrisons Compromised . | . . . Overloaded Fab Kills . | . . . Hacking | -11 -10 -9 --------- Run | Scr Mat Mat Machines Accessed 5 | . 3 2 Terminals 5 | . 3 2 Fabricators . | . . . Repair Stations . | . . . Recycling Units . | . . . Scanalyzers . | . . . Garrison Access . | . . . Total Hacks 16 | . 7 9 Successful 7 | . 3 4 Failed 9 | . 4 5 Catastrophic 1 | . 1 . Database Lockouts . | . . . Manual 11 | . 5 6 Terminals 16 | . 7 9 Fabricators . | . . . Repair Stations . | . . . Recycling Units . | . . . Scanalyzers . | . . . Garrison Access . | . . . Terminal Hacks 5 | . 3 2 Prototype ID Bank 1 | . . 1 Unreport Threat 2 | . 2 . Locate Traps 2 | . 1 1 Fabricator Hacks . | . . . Repair Station Hacks . | . . . Recycling Unit Hacks . | . . . Scanalyzer . | . . . Garrison Access Hacks . | . . . Unauthorized Hacks 2 | . . 2 Terminals 2 | . . 2 Botnet 2 | . . 2 Fabricators . | . . . Repair Stations . | . . . Recycling Units . | . . . Scanalyzers . | . . . Garrison Access . | . . . Data Cores Recovered . | . . . Used . | . . . Hacking Detections 4 | . 2 2 Full Trace Events 1 | . . 1 Feedback Events . | . . . Feedback Blocked . | . . . Robot Schematics Acquired . | . . . Robots Built . | . . . Authchips . | . . . Time . | . . . Total Robot Build Rating . | . . . Part Schematics Acquired . | . . . Parts Built . | . . . Authchips . | . . . Time . | . . . Total Part Build Rating . | . . . Parts Repaired . | . . . Time . | . . . Parts Recycled . | . . . Recycled Matter . | . . . Retrieved Matter . | . . . Retrieved Components . | . . . Parts Scanalyzed . | . . . Part Schematics Acquired . | . . . Parts Damaged . | . . . Bothacking | -11 -10 -9 ------------ Run | Scr Mat Mat Used RIF Installer . | . . . Robots Hacked . | . . . Non-combat . | . . . Combat . | . . . Robot Hacks Applied . | . . . Relay Couplers Released . | . . . Fabnet Peak Effective % . | . . . Robots Rewired . | . . . Allies Hacked . | . . . Hacks Repelled . | . . . Allies | -11 -10 -9 -------- Run | Scr Mat Mat Total Allies . | . . . Largest Group . | . . . Highest-Rated Group . | . . . Highest-Rated Ally . | . . . Total Orders . | . . . Ally Attacks . | . . . Total Damage . | . . . Kills . | . . . Allies Corrupted . | . . . Allies Melted . | . . . Intel | -11 -10 -9 ------- Run | Scr Mat Mat Robot Analysis Total . | . . . Derelict Logs Recovered . | . . . Drone Launches . | . . . Drone Recoveries . | . . . Exploration | -11 -10 -9 ------------- Run | Scr Mat Mat Turns Passed 985 | 77 489 419 Spaces Moved 479 | 39 229 211 Core 5 | 5 . . Treads 263 | 34 229 . Legs 211 | . . 211 Wheels . | . . . Hover . | . . . Flight . | . . . Fastest Speed 50 | 50 160 120 Average Speed 141 | 147 160 120 Slowest Speed 160 | 160 160 120 Overloaded Moves . | . . . Propulsion Burnouts . | . . . Robots Hopped . | . . . Cave-ins Triggered . | . . . Exploration Rate (%) 17 | 3 34 15 Regions Visited 2 Branch Regions . Pre-discovered Areas . | . . . Known Exits Taken . | . . . Unknown Exits Taken 2 | 1 1 . Scrap Searched . | . . . Spaces Dug 4 | . . 4 Terrain Destroyed 12 | . 8 4 Melee 4 | . . 4 Projectile . | . . . AOE 8 | . 8 . Terrain Rammed . | . . . Walls Destroyed . | . . . Machines Disabled . | . . . Actions | -11 -10 -9 --------- Run | Scr Mat Mat Total 650 | 51 298 301 Wait 46 | . 15 31 Move 477 | 38 228 211 Hop . | . . . Pick Up 19 | 4 13 2 Fast Attach 13 | 7 3 3 Attach 6 | . . 6 Detach 1 | . . 1 Swap 3 | . 1 2 Drop 14 | . 6 8 Fire 30 | 2 28 . Melee 36 | . . 36 Ram . | . . . Kick 1 | . . 1 Crush 4 | . 4 . Escape Stasis . | . . . Rewire . | . . . Trap . | . . . Miscellaneous . | . . . Route ------- -11/Scrapyard -10/Materials -9/Materials History --------- Turn | Location | Event 5 | -11/Scrapyard | Discovered new exit (range 15) 78 | -11/Scrapyard | Entered Materials 203 | -10/Materials | Destroyed 8 combat bots 281 | -10/Materials | Discovered new exit (range 9) 300 | -10/Materials | Build established: Mutant 567 | -10/Materials | Entered another Materials area 567 | -9/Materials | Evolved 2 slots: Propulsion x2 984 | -9/Materials | System corruption reached 10% 986 | -9/Materials | Self-destructed Last Messages --------------- 00886_ Connecting with Terminal... >>Trojan(Botnet) Trojan loaded successfully. Testing... Terminal linked with 1 system. Awaiting botnet instructions. 00889_ U-05 Engineer lays Concrete. 00890_ U-05 Engineer builds a Wall. 00891_ T-07 Excavator is excavating. 00950_ U-05 Engineer builds a Wall. 00954_ Mining Claw follow-up attack on B-36 Bruiser. 00961_ B-36 Bruiser Rnf. Ion Engine ripped off. 00961_ Mining Claw follow-up attack on B-36 Bruiser. 00961_ Transport Network Coupler destroyed. 00961_ System corrupted by crushing effect (+4). 00967_ Aluminum Leg destroyed. 00967_ System corrupted by crushing effect (+2). 00982_ Mining Claw follow-up attack on B-36 Bruiser. 00983_ Aluminum Leg destroyed. 00983_ System corrupted by crushing effect (+4). Map ----- +----------------------------------------------------+ | ????????????#!! #????????????????????????????? | | ????????????#!! #????????????????????????????? | | ????????????#!! #????????????????????????????? | | ????????????#!! #????????????????????????????? | | ????????????##### #????????????????????????????? | | ????????????????# #????????????????????????????? | | ????????????????# #????????????????????????????? | | ????????????????# #????????????????????????????? | | ????????????????# #????????????????????????????? | | ????????????????# #????????????????????????????? | | ????????????????# #????????????????????????????? | | ?????????######?# #?#########??????????????????? | | ?????????# # # #??????????????????? | | ?????????# """ # # #??????????????????? | | ?????????# """ + + #??????????????????? | | ?????????# """ # # #??????????????????? | | ?????????# """ # ###########??????????????????? | | ?????????# ?# ########?????????????????????? | | ?????????######?# # #?????????????????????? | | ??????????####### # " #?????????????????????? | | ??????????# # # T #?????????????????????? | | ??????????? + = " #?????????????????????? | | ???????????# # # #?????????????????????? | | ????????????##### # #?????????????????????? | | ????????????????# ########?????????????????????? | | ????????????????# #| @ #?????????????????????? | | ????????????????# # b #?????????????????????? | | ????????????????# # g #?????????????????????? | | ????????????????# + """ #?????????????????????? | | ????????????????# # """ #?????????????????????? | | ????????????????# # """ ##????????????????????? | | ????????????????# #########????????????????????? | | ????????????????# #?????###????????????????????? | | ????????????????# #????????????????????????????? | | ????????????????# #????????????????????????????? | | ??????????? #????????????????????????????? | | ?????? #????????????????????????????? | | ????? #????????????????????????????? | | ?????############ #????????????????????????????? | | ????????????????# #????????????????????????????? | | ????????????????# #????????????????????????????? | | ????????????????# #????????????????????????????? | | ????????????????# #????????????????????????????? | | ????????????????# ?????????????????????????????? | | ????????????????# ?????????????????????????????? | | ????????????????# ?????????????????????????????? | | ????????????????# "?????????????????????????????? | | ????????????????# T?????????????????????????????? | | ????????????????# ??????????????????????????????? | | ????????????????? ??????????????????????????????? | +----------------------------------------------------+ Best States ------------- Heat Dissipation 28 Energy Generation 14 Energy Capacity 280 Matter Stores 300 Matter Capacity 300 Sight Range 16 Terrain Scan Density 10 Armor Coverage 150 Evasion (%) 55 Recoil Reduction 2 Item Schematics ----------------- None Robot Schematics ------------------ None Fabricated ------------ Nothing Alien Tech Used ----------------- None Achievements -------------- None Challenges ------------ None Game ------ Seed CoilAblativeExpander Manual? 0 Play Time 00:07:50 Cumulative 689.6 hours Start 2022.03.27 @ 12:09:10 End 2022.03.27 @ 12:19:26 Sessions 1 Manual Loads 0 Difficulty Rogue Special Mode None Game No. 1061 Rogue 1061 Adventurer 0 Explorer 0 Win Type - Total 65 Types 40/1/9/11/4/0/0/0/0 Lore% 88 Gallery% 87 Achievement% 83 Wizard Run 0 Options --------- ASCII 1 Keyboard 0 Movement Numpad Keybinds 0 Fullscreen 0 Font 14/SmallcapsGlow Map View 76x50 Tactical HUD 1 Map Filters NONE Filters NONE Steam 1 RUN: f4d41344-40e9-4ce8-99b8-48efdf546210